Cogmind - Beta 15 *** ADVENTURER MODE // 2025.05.13 @ 09:11:27 Player: Jefffff Result: Destroyed by 25-Z28(R) with Subdweller Laser Performance ------------- Evolutions (0) 0 Regions Visited (3) 600 Robots Destroyed (24) 120 Value Destroyed (437) 437 Prototype IDs (15) 300 Alien Tech Used (0) 0 Bonus (0) 0 TOTAL SCORE: 1457 Bonus ------- None Cogmind --------- Core Integrity 0/250 Matter 282/300 Energy 250/250 System Corruption 0% Temperature Cool (6) Movement Walking (260) Ox2 Location -10/Subcaves Parts ------- > --- POWER (1) -------- Ion Engine > --- PROPULSION (2) --- Aluminum Leg Aluminum Leg > --- UTILITY (2) ------ High-capacity Storage Unit Machine Analyzer > --- WEAPON (2) ------- Small Laser Light Assault Rifle > --- INVENTORY (20) --- Ion Engine Light Treads Light Treads Light Treads Aluminum Leg Aluminum Leg Aluminum Leg Wheel Wheel Improved Heat Sink Small Matter Pod (0) Seismic Detector ECM Suite Core Shielding Propulsion Shielding Subdweller Beam Cannon Light Cannon Grenade Launcher Datajack Mining Laser Peak State ------------ > --- POWER ------------ Ion Engine > --- PROPULSION ------- Aluminum Leg Aluminum Leg > --- UTILITY ---------- High-capacity Storage Unit Machine Analyzer > --- WEAPON ----------- Assault Rifle Rocket Launcher > --- INVENTORY -------- Ion Engine Ion Engine Light Treads Light Treads Light Treads Aluminum Leg Aluminum Leg Aluminum Leg Aluminum Leg Wheel Wheel Improved Heat Sink Seismic Detector ECM Suite Core Shielding Propulsion Shielding Small Laser Light Assault Rifle Datajack Mining Laser [Rating: 12] Favorites ----------- Power Ion Engine Engine Ion Engine Propulsion Aluminum Leg Leg Aluminum Leg Utility Machine Analyzer Storage High-capacity Storage Unit Processor Machine Analyzer Weapon Light Assault Rifle Energy Gun Small Laser Ballistic Gun Light Assault Rifle Launcher Rocket Launcher Build | -11 -10 -10 -10 ------- Run | Yrd Mat Min Sub Slots Evolved . | . . . . Power . | . . . . Propulsion . | . . . . Utility . | . . . . Weapon . | . . . . Parts Attached 20 | 7 8 5 . Power 5 | 1 3 1 . Engine 5 | 1 3 1 . Core . | . . . . Reactor . | . . . . Propulsion 5 | 2 2 1 . Treads . | . . . . Leg 5 | 2 2 1 . Wheel . | . . . . Hover . | . . . . Flight . | . . . . Utility 3 | 1 2 . . Device . | . . . . Storage 2 | 1 1 . . Processor 1 | . 1 . . Hackware . | . . . . Protection . | . . . . Artifact . | . . . . Weapon 7 | 3 1 3 . Energy Gun 2 | 2 . . . Energy Cannon . | . . . . Ballistic Gun 4 | 1 1 2 . Ballistic Cannon . | . . . . Launcher 1 | . . 1 . Special Weapon . | . . . . Impact Weapon . | . . . . Slashing Weapon . | . . . . Piercing Weapon . | . . . . Special Melee Weapon . | . . . . Unidentified Prototypes . | . . . . Parts Lost 5 | . 2 1 2 Power 1 | . 1 . . Propulsion 1 | . . 1 . Utility . | . . . . Weapon 3 | . 1 . 2 Highest Loss Streak 1 | . 1 1 1 To Critical Strikes . | . . . . Average Backups 17 | 3 15 19 18 Power 2 | . 3 2 1 Propulsion 8 | 1 8 8 8 Utility 4 | . 2 4 6 Weapon 2 | . 1 2 2 Tool/Special . | . . . . Unused Backups 28 | . 5 4 19 Power 7 | . 4 2 1 Propulsion 8 | . . . 8 Utility 8 | . 1 1 6 Weapon 4 | . . 1 3 Tool/Special 1 | . . . 1 Average Slot Usage (%) 98 | . 96 99 100 Engine 13 | . 13 14 14 Leg 27 | . 28 27 28 Storage 14 | . 14 14 14 Processor 13 | . 11 14 14 Energy Gun 1 | . 1 . 2 Ballistic Gun 20 | . 25 24 14 Launcher 5 | . . 3 11 Peak Build Rating 12 | 6 11 12 12 Average Rating 10 | 4 9 11 11 On Entrance 7 | . 6 11 12 Naked Turns . | . . . . Heaviest Build 51 | 13 47 51 51 Greatest Support 20 | 20 20 20 20 Greatest Overweight (x) 2 | . 2 2 2 Average Overweight (x) 1 | . 1 2 2 Largest Inventory Capacity 20 | 8 20 20 20 Average Capacity 18 | 6 17 20 20 Most Carried 20 | 5 20 20 20 Average Carried 17 | 3 15 19 18 Final Capacity 20 | 8 20 20 20 Final Carried 20 | 4 19 19 20 Class Distribution -------------------- 100% | Mutant Dominant Class ---------------- Mutant | -10/Materials Mutant | -10/Mines Mutant | -10/Subcaves Resources | -11 -10 -10 -10 ----------- Run | Yrd Mat Min Sub Matter Collected 668 | 221 231 126 90 Remotely . | . . . . Salvage Created 641 | . 567 43 31 Parts 35 | . 32 3 . Haulers Intercepted 2 | . 2 . . Recyclers Shooed 1 | . 1 . . Parts Field Recycled . | . . . . Retrieved Matter . | . . . . Parts Self-Destructed . | . . . . Prevented . | . . . . Kills | -11 -10 -10 -10 ------- Run | Yrd Mat Min Sub Combat Hostiles Destroyed 16 | . 8 7 1 Guns 14 | . 8 5 1 AOE 2 | . . 2 . Classes Destroyed 10 | . 7 2 1 Worker 4 | . 4 . . Hauler 2 | . 2 . . Recycler 1 | . 1 . . Mechanic 1 | . 1 . . Watcher 2 | . 2 . . Swarmer 7 | . 4 3 . Grunt 4 | . 4 . . Demolisher 2 | . . 2 . Subdweller 1 | . . . 1 Assembled 2 | . . 2 . Best Kill Streak 4 | . 3 4 1 Combat Bots Only 4 | . 2 4 1 Max Kills in Single Turn 1 | . 1 1 1 Gunslinging . | . . . . Exploded 1 | . . 1 . Melee . | . . . . Uniques/NPCs Destroyed . | . . . . Combat | -11 -10 -10 -10 -------- Run | Yrd Mat Min Sub Hostile Shots Fired 109 | . 69 33 7 Missed 26 | . 16 9 1 Hits 83 | . 53 24 6 Projectile 83 | . 53 24 6 AOE 10 | . . 10 . Critical Strikes 1 | . 1 . . Damage Taken 986 | . 485 378 123 Core 258 | . 121 123 14 Absorbed by Shields . | . . . . Ignored by Resistances 282 | . 149 108 25 Regen/Repaired (Parts) 13 | . 13 . . Core Remaining (%) 100 | 100 . . . Volleys Fired 82 | . 60 18 4 Largest 2 | . 2 2 2 Hottest 60 | . 60 53 60 Shots Fired 150 | . 112 30 8 Gun 138 | . 112 19 7 Cannon . | . . . . Launcher 12 | . . 11 1 Special . | . . . . Kinetic 130 | . 107 19 4 Thermal 3 | . . . 3 Explosive 12 | . . 11 1 Electromagnetic 5 | . 5 . . Robot Hit Streak 15 | . 15 11 11 Robot Miss Streak 4 | . 4 2 . Penetration Max . | . . . . Secondary Targets 1 | . . 1 . Max Gunslinging Chain 1 | . . 1 . Shots Hit Robots 106 | . 77 22 7 Core Hits 59 | . 38 18 3 Critical Kills . | . . . . Critical Parts Destroyed . | . . . . Critical Strikes . | . . . . Melee Attacks . | . . . . Impact . | . . . . Slashing . | . . . . Piercing . | . . . . Sneak Attacks . | . . . . Combat Hostiles . | . . . . Follow-up Attacks . | . . . . Damage Inflicted 1296 | . 677 522 97 Guns 886 | . 667 158 61 Cannons . | . . . . Explosions 400 | . . 364 36 Melee . | . . . . Ramming 10 | . 10 . . Kinetic 820 | . 625 158 37 Thermal 24 | . . . 24 Explosive 400 | . . 364 36 Electromagnetic 42 | . 42 . . Impact . | . . . . Slashing . | . . . . Piercing . | . . . . Highest Corruption . | . . . . Average Corruption . | . . . . Corruption Purged . | . . . . Corruption Blocked . | . . . . Overload Shots . | . . . . Overflow Damage 14 | . . 14 . Projectiles . | . . . . Explosions 14 | . . 14 . Melee . | . . . . Knockbacks . | . . . . Impact . | . . . . Kinetic . | . . . . Secondary . | . . . . Self-Inflicted Damage . | . . . . Shots . | . . . . Rammed . | . . . . Targets Rammed 1 | . 1 . . Kicked 1 | . 1 . . Crushed . | . . . . Highest Temperature 74 | . 74 . . Average Temperature 24 | . 24 . . Received Heat Transfer 339 | . 303 . 36 Siege Activations . | . . . . Martial Activations . | . . . . Shielding Activations . | . . . . Robots Disrupted . | . . . . Combat Hostiles . | . . . . Robots Corrupted . | . . . . Combat Hostiles . | . . . . Parts Fried . | . . . . Impact Corruptions . | . . . . Robots Melted . | . . . . Combat Hostiles . | . . . . Parts Melted . | . . . . Heat Transferred 50 | . . . 50 Parts Sabotaged . | . . . . Parts Stolen . | . . . . Parts Stripped . | . . . . Power Chain Reactions . | . . . . Alert | -11 -10 -10 -10 ------- Run | Yrd Mat Min Sub Maximum Alert Level . | . . . . Low Security (%) 100 | 100 100 100 . Level 1 . | . . . . Level 2 . | . . . . Level 3 . | . . . . Level 4 . | . . . . Level 5 . | . . . . High Security . | . . . . Max Security . | . . . . Peak Influence 90 | . 90 70 . Initial . | . . . . Average 16 | . 20 10 . Influence Increases 459 | . 307 152 . Destroy 0b10 Robot/C 260 | . 160 100 . Destroy 0b10 Robot/NC 50 | . 50 . . Destroy Leader 58 | . 38 20 . Successful Hack 14 | . 14 . . Destroy Structure 32 | . . 32 . Lose Combat Pursuer 45 | . 45 . . Influence Decreases 459 | . 307 152 . Time Decay 439 | . 297 142 . Lost Part 20 | . 10 10 . Squads Dispatched . | . . . . Investigation . | . . . . Extermination . | . . . . Reinforcement . | . . . . Assault . | . . . . Garrison . | . . . . Intercept . | . . . . Searches Triggered . | . . . . Construction Impeded . | . . . . Haulers Reinforced . | . . . . Active Scanning Responses . | . . . . Cargo Convoy Interrupts . | . . . . Stealth | -11 -10 -10 -10 --------- Run | Yrd Mat Min Sub Distress Signals 1 | . 1 . . Communications Jammed . | . . . . Distress Signals . | . . . . Times Spotted 30 | . 21 7 2 Peak Tracking Total 6 | . 6 5 1 Tactical Retreats 2 | . 2 . . Traps | -11 -10 -10 -10 ------- Run | Yrd Mat Min Sub Traps Triggered 1 | . . . 1 Indirectly . | . . . . Trap Hack Attempts . | . . . . Triggered . | . . . . Disarmed . | . . . . Reprogrammed . | . . . . Reused . | . . . . Traps Extracted . | . . . . Installed . | . . . . Triggered . | . . . . Machines | -11 -10 -10 -10 ---------- Run | Yrd Mat Min Sub Machines Disabled . | . . . . Max in Single Turn . | . . . . Machines Repaired . | . . . . Machines Dismantled . | . . . . Machines Sabotaged . | . . . . Overloaded Fab Kills . | . . . . Hacking | -11 -10 -10 -10 --------- Run | Yrd Mat Min Sub Machines Accessed 5 | . 4 . 1 Terminals 3 | . 3 . . Fabricators . | . . . . Repair Stations 1 | . 1 . . Recycling Units . | . . . . Scanalyzers . | . . . . Garrison Access . | . . . . Total Hacks 20 | . 11 . 9 Successful 16 | . 7 . 9 Failed 4 | . 4 . . Catastrophic 1 | . 1 . . Database Lockouts . | . . . . Manual 2 | . 2 . . Terminals 9 | . 9 . . Fabricators . | . . . . Repair Stations 2 | . 2 . . Recycling Units . | . . . . Scanalyzers . | . . . . Garrison Access . | . . . . Terminal Hacks 14 | . 5 . 9 Record 9 | . 1 . 8 Prototype ID Bank 2 | . 2 . . Locate Traps 1 | . 1 . . Registered Components 1 | . 1 . . Proto ID Catalog 1 | . . . 1 Fabricator Hacks . | . . . . Repair Station Hacks 2 | . 2 . . Scan Component 1 | . 1 . . Repair 1 | . 1 . . Recycling Unit Hacks . | . . . . Scanalyzer . | . . . . Garrison Access Hacks . | . . . . Unauthorized Hacks . | . . . . Terminals . | . . . . Fabricators . | . . . . Repair Stations . | . . . . Recycling Units . | . . . . Scanalyzers . | . . . . Garrison Access . | . . . . Data Cores Recovered . | . . . . Used . | . . . . Hacking Detections 4 | . 4 . . Full Trace Events . | . . . . Feedback Events . | . . . . Feedback Blocked . | . . . . Robot Schematics Acquired . | . . . . Robots Built . | . . . . Authchips . | . . . . Time . | . . . . Total Robot Build Rating . | . . . . Part Schematics Acquired . | . . . . Parts Built . | . . . . Authchips . | . . . . Time . | . . . . Total Part Build Rating . | . . . . Parts Repaired 1 | . 1 . . Time 38 | . 38 . . Parts Recycled . | . . . . Recycled Matter . | . . . . Retrieved Matter . | . . . . Retrieved Components . | . . . . Parts Scanalyzed . | . . . . Part Schematics Acquired . | . . . . Parts Damaged . | . . . . Bothacking | -11 -10 -10 -10 ------------ Run | Yrd Mat Min Sub Used RIF Installer . | . . . . Robots Hacked . | . . . . Non-combat . | . . . . Combat . | . . . . Robot Hacks Applied . | . . . . Relay Couplers Released . | . . . . Fabnet Peak Effective % . | . . . . Robots Rewired . | . . . . Allies Hacked . | . . . . Hacks Repelled . | . . . . Allies | -11 -10 -10 -10 -------- Run | Yrd Mat Min Sub Total Allies . | . . . . Largest Group . | . . . . Highest-Rated Group . | . . . . Highest-Rated Ally . | . . . . Total Orders . | . . . . Ally Attacks . | . . . . Total Damage . | . . . . Kills . | . . . . Allies Corrupted . | . . . . Allies Melted . | . . . . Intel | -11 -10 -10 -10 ------- Run | Yrd Mat Min Sub Active Infowar (turns) 3132 | . 936 768 1428 Machine Analysis 3132 | . 936 768 1428 Robot Analysis Total . | . . . . Derelict Logs Recovered . | . . . . Drone Launches . | . . . . Drone Recoveries . | . . . . Exploration | -11 -10 -10 -10 ------------- Run | Yrd Mat Min Sub Turns Passed 3354 | 75 1083 768 1428 Spaces Moved 1280 | 65 404 269 542 Core 28 | 28 . . . Treads . | . . . . Legs 1252 | 37 404 269 542 Wheels . | . . . . Hover . | . . . . Flight . | . . . . Fastest Speed 50 | 50 120 260 260 Average Speed 236 | 89 213 260 260 Slowest Speed 260 | 120 260 260 260 Overloaded Moves . | . . . . Propulsion Burnouts . | . . . . Robots Hopped . | . . . . Potential Cave-ins . | . . . . Cave-ins Triggered . | . . . . Exploration Rate (%) 40 | 4 62 66 30 Regions Visited 3 Branch Regions 2 Pre-discovered Areas . | . . . . Known Exits Taken . | . . . . Unknown Exits Taken 3 | 1 1 1 . Scrap Searched 2 | . . 2 . Spaces Dug . | . . . . Terrain Destroyed 56 | . . 49 7 Melee . | . . . . Projectile . | . . . . AOE 56 | . . 49 7 Terrain Rammed . | . . . . Walls Destroyed . | . . . . Machines Disabled . | . . . . Actions | -11 -10 -10 -10 --------- Run | Yrd Mat Min Sub Total 1494 | 79 547 315 553 Wait 49 | . 38 9 2 Move 1277 | 64 403 268 542 Hop . | . . . . Pick Up 42 | 7 25 7 3 Fast Attach 5 | 4 1 . . Attach 7 | 2 2 1 2 Detach . | . . . . Swap 10 | 1 5 4 . Drop 21 | 1 12 8 . Fire 82 | . 60 18 4 Melee . | . . . . Ram . | . . . . Kick 1 | . 1 . . Crush . | . . . . Escape Stasis . | . . . . Rewire . | . . . . Trap . | . . . . Miscellaneous . | . . . . Route ------- -11/Scrapyard -10/Materials (discovered 2 exits: [*Mat] / [*Min]) -10/Mines (discovered 2 exits: [*Mat] / *Sub) -10/Subcaves History --------- Turn | Location | Event 7 | -11/Scrapyard | Discovered new exit (range 16) 76 | -11/Scrapyard | Entered Materials 319 | -10/Materials | Build established: Mutant 430 | -10/Materials | Repaired Imp. Heat Sink 661 | -10/Materials | Discovered new exit (range 12) 1073 | -10/Materials | Discovered new exit (range 16) 1159 | -10/Materials | Entered Mines 1363 | -10/Mines | Received a Rocket Launcher from a helpful Derelict 1541 | -10/Mines | Core integrity fell below 50% 1707 | -10/Mines | Assembled infested the area 1737 | -10/Mines | Core integrity fell below 20% 1880 | -10/Mines | Discovered new exit (range 7) 1914 | -10/Mines | Discovered new exit (range 6) 1927 | -10/Mines | Entered Subcaves 2472 | -10/Subcaves | Visited 4L-MR0's lab 3355 | -10/Subcaves | Destroyed by 25-Z28(R) with Subdweller Laser Last Messages --------------- way I'm not culpable for whatever they would've done with it. If we're lucky even some of the others got blasted, too. 02512_ 4L-MR0 mumbles: "Who knows where that last prototype ended up, probably tossed aside somewhere as if it were useless junk..." 02533_ Triggered Piercing Trap. 02533_ Spikes shoot up from the floor. 02533_ Assault Rifle destroyed. 03119_ Rocket Launcher destroyed. 03126_ 3H-LCR(R) destroyed. 03139_ Acquired Grenade Launcher. 03140_ Acquired 31 matter. 03145_ Acquired Lgt. Cannon. 03205_ Subatomizers dissect the Sub. Beam Cannon. 03222_ Acquired 59 matter. 03228_ Subatomizers dissect the Sub. Beam Cannon. 03229_ Acquired Sub. Beam Cannon. Map ----- +----------------------------------------------------+ | #???????????????# ##?# ^ #??????????????? | | ##???????????????# ##?# #???????????????? | | ##????????????????## #### ######??????????? | | ####??????????????## ##?????????? | | ## #??????????????# #?????????? | | #??????????????# ### #?????????? | | ##????????????## ### ##?????????? | | #?#######?#### # ##?????????? | | ### # ###""""" #?????????? | | " """ " ##?????????? | | " " """ " ######??????????? | | ## # ## """""" # #???????????????? | | ############# "" ## # ##???????????????? | | ###?# #?# "" ### ## ##???????????????? | | ### ### " ### #### ##??????????????? | | # ### " ## #??# ##?????????????? | | ######## ##??## #?????????????? | | ##????# ##????# ##?????????????? | | ## #????###?###### ###????????????? | | ## # ##?????#### ##???????????? | | # # ## #?????## #???????????? | | ### #???### ##### ##??????????? | | #### #???# ##### #??????????? | | ## # ### ##???## #??????????? | | # ###?????### #?????????? | | ### ##### ##?????????# @ ## #?????????? | | ??# ????## #??????????# ##?? #?????????? | | ??# ?????# #????????? ##??? #?????????? | | ??# ##???# #????????# ####????? #?????????? | | ??# #???# #????????# #???????? #?????????? | | ??## ##### #????????# #???????? ##?????????? | | ???# #???????? ?????????????????????? | | ???#########???????# ?????????????????????? | | ???????????????????## ### ?????????????????????? | | ????????????????????## ??? ????????????????????? | | ?????????????????????# ??? ????????????????????? | | ?????????????????????# ??? ????????????????????? | | ?????????????????????# ???#R????????????????????? | | ?????????????????????###????# ???????????????????? | | ????????????????????????????? ???????????????????? | | ?????????????????????????????????????????????????? | | ?????????????????????????????????????????????????? | | ?????????????????????????????????????????????????? | | ?????????????????????????????????????????????????? | | ?????????????????????????????????????????????????? | | ?????????????????????????????????????????????????? | | ?????????????????????????????????????????????????? | | ?????????????????????????????????????????????????? | | ?????????????????????????????????????????????????? | | ?????????????????????????????????????????????????? | +----------------------------------------------------+ Best States ------------- Heat Dissipation 25 Energy Generation 10 Energy Capacity 250 Matter Stores 300 Matter Capacity 300 Sight Range 16 Terrain Scan Density 10 Resistance: KI 20 Resistance: TH 20 Resistance: EX 20 Resistance: EM 20 Resistance: I 20 Resistance: S 20 Resistance: P 20 Evasion (%) 55 Offensive Hacking 10 Item Schematics ----------------- None Robot Schematics ------------------ None Fabricated ------------ Nothing Repaired ---------- Imp. Heat Sink | 67% | -10/Materials Alien Tech Used ----------------- None Achievements -------------- None Challenges ------------ None Game ------ Seed SiegeHackingHumpback Manual? 0 Play Time 00:12:57 Cumulative 246.8 hours Start 2025.05.13 @ 08:59:30 End 2025.05.13 @ 09:11:27 Sessions 1 Manual Loads 0 Difficulty Adventurer Special Mode None Game No. 278 Rogue 0 Adventurer 278 Explorer 0 Win Type - Total 0 Types 0/0/0/0/0/0/0/0/0/0 Lore% 72 Gallery% 59 Achievement% 49 Wizard Run 0 Options --------- Layout 2 ASCII 0 Keyboard 0 Movement Mouse Keybinds 0 Fullscreen 2 Font 48/Smallcaps Map View 50x44 Zoom Use 0% Tactical HUD 1 Map Filters NONE Filters NONE Steam 1 RUN: a0bb06d5-af37-43b7-aee1-3bf844272516